[Event "Titled Tuesday Blitz July 18 Late 2023"]
[White "Oparin, Grigoriy"]
[Black "Oganian, Miran"]
[WhiteFideId "24125890"]
[BlackFideId "4122488"]
[WhiteElo "2986"]
[BlackElo "2774"]
[Result "1-0"]
[Round "6"]
[TimeControl "180+2"]
[Date "2023.07.18"]
[WhiteClock "0:00:59"]
[BlackClock "0:00:07"]
[Board "14"]

1. e4 {[%clk 0:02:57]}  e6 {[%clk 0:03:00]} 2. d4 {[%clk 0:02:56]}  d5 {[%clk 0:03:00]} 3. Nc3 {[%clk 0:02:57]}  Bb4 {[%clk 0:03:00]} 4. Ne2 {[%clk 0:02:58]}  dxe4 {[%clk 0:03:00]} 5. a3 {[%clk 0:02:58]}  Be7 {[%clk 0:03:01]} 6. Nxe4 {[%clk 0:02:55]}  Nf6 {[%clk 0:03:01]} 7. N2g3 {[%clk 0:02:52]}  Bd7 {[%clk 0:02:58]} 8. Nxf6+ {[%clk 0:02:41]}  Bxf6 {[%clk 0:02:58]} 9. Be3 {[%clk 0:02:42]}  Bc6 {[%clk 0:02:51]} 10. Qd2 {[%clk 0:02:42]}  Nd7 {[%clk 0:02:50]} 11. O-O-O {[%clk 0:02:42]}  Qe7 {[%clk 0:02:43]} 12. Nh5 {[%clk 0:02:42]}  O-O-O {[%clk 0:02:41]} 13. Rg1 {[%clk 0:02:39]}  Kb8 {[%clk 0:02:40]} 14. Be2 {[%clk 0:02:29]}  Nb6 {[%clk 0:02:38]} 15. g4 {[%clk 0:02:20]}  h6 {[%clk 0:02:09]} 16. Nxf6 {[%clk 0:02:18]}  gxf6 {[%clk 0:02:06]} 17. c4 {[%clk 0:02:08]}  Ba4 {[%clk 0:02:05]} 18. Rde1 {[%clk 0:02:00]}  e5 {[%clk 0:02:02]} 19. d5 {[%clk 0:01:56]}  Bd7 {[%clk 0:01:31]} 20. Qa5 {[%clk 0:01:42]}  Bc8 {[%clk 0:01:21]} 21. Rd1 {[%clk 0:01:39]}  f5 {[%clk 0:01:19]} 22. gxf5 {[%clk 0:01:38]}  Bxf5 {[%clk 0:01:20]} 23. b3 {[%clk 0:01:32]}  Nc8 {[%clk 0:01:14]} 24. Kb2 {[%clk 0:01:31]}  Rhg8 {[%clk 0:01:09]} 25. Rxg8 {[%clk 0:01:28]}  Rxg8 {[%clk 0:01:10]} 26. c5 {[%clk 0:01:28]}  b6 {[%clk 0:01:01]} 27. Qc3 {[%clk 0:01:28]}  Rd8 {[%clk 0:00:57]} 28. a4 {[%clk 0:01:23]}  Be4 {[%clk 0:00:56]} 29. Qc4 {[%clk 0:01:18]}  f5 {[%clk 0:00:44]} 30. f3 {[%clk 0:01:17]}  f4 {[%clk 0:00:44]} 31. Bf2 {[%clk 0:01:11]}  Bh7 {[%clk 0:00:40]} 32. a5 {[%clk 0:01:11]}  e4 {[%clk 0:00:34]} 33. fxe4 {[%clk 0:01:09]}  Bxe4 {[%clk 0:00:34]} 34. d6 {[%clk 0:01:07]}  Qe5+ {[%clk 0:00:25]} 35. Bd4 {[%clk 0:01:07]}  Qd5 {[%clk 0:00:09]} 36. dxc7+ {[%clk 0:01:03]}  Kxc7 {[%clk 0:00:09]} 37. cxb6+ {[%clk 0:01:04]}  Kb7 {[%clk 0:00:08]} 38. a6+ {[%clk 0:00:57]}  Kb8 {[%clk 0:00:07]} 39. Qc7+ {[%clk 0:00:57]}  Ka8 {[%clk 0:00:07]} 40. b7+ {[%clk 0:00:58]}  Qxb7 {[%clk 0:00:08]} 41. axb7+ {[%clk 0:00:58]}  Bxb7 {[%clk 0:00:08]} 42. Qxd8 {[%clk 0:00:59]}  Bh1 {[%clk 0:00:07]} 43. Qxc8# {[%clk 0:00:59]} 1-0


[Site "https://www.chess.com"]

[Event "Titled Tuesday Blitz July 18 Late 2023"]
[White "Hakobyan, Aram"]
[Black "Nasuta, Grzegorz"]
[WhiteFideId "13306677"]
[BlackFideId "1141686"]
[WhiteElo "2963"]
[BlackElo "2729"]
[Result "1-0"]
[Round "6"]
[TimeControl "180+2"]
[Date "2023.07.18"]
[WhiteClock "0:01:18"]
[BlackClock "0:00:02"]
[Board "18"]

1. d4 {[%clk 0:03:00]}  d5 {[%clk 0:02:58]} 2. c4 {[%clk 0:03:01]}  c6 {[%clk 0:02:56]} 3. Nf3 {[%clk 0:03:02]}  Nf6 {[%clk 0:02:56]} 4. Nc3 {[%clk 0:03:03]}  e6 {[%clk 0:02:54]} 5. Qc2 {[%clk 0:03:02]}  Nbd7 {[%clk 0:02:42]} 6. e4 {[%clk 0:03:01]}  dxe4 {[%clk 0:02:42]} 7. Nxe4 {[%clk 0:03:02]}  Nxe4 {[%clk 0:02:43]} 8. Qxe4 {[%clk 0:03:03]}  Bb4+ {[%clk 0:02:42]} 9. Bd2 {[%clk 0:03:04]}  Qa5 {[%clk 0:02:37]} 10. Bd3 {[%clk 0:02:58]}  Nf6 {[%clk 0:02:33]} 11. Qe3 {[%clk 0:02:54]}  O-O {[%clk 0:02:28]} 12. O-O {[%clk 0:02:50]}  Bxd2 {[%clk 0:02:28]} 13. Nxd2 {[%clk 0:02:51]}  Rd8 {[%clk 0:02:25]} 14. Nf3 {[%clk 0:02:50]}  Qc7 {[%clk 0:02:02]} 15. Rad1 {[%clk 0:02:49]}  b6 {[%clk 0:02:00]} 16. c5 {[%clk 0:02:42]}  a5 {[%clk 0:01:43]} 17. Rfe1 {[%clk 0:02:38]}  Ba6 {[%clk 0:01:42]} 18. Bb1 {[%clk 0:02:31]}  Bc4 {[%clk 0:01:17]} 19. Ne5 {[%clk 0:02:30]}  Bd5 {[%clk 0:01:17]} 20. h3 {[%clk 0:02:29]}  Rab8 {[%clk 0:01:15]} 21. b3 {[%clk 0:02:29]}  bxc5 {[%clk 0:01:09]} 22. dxc5 {[%clk 0:02:30]}  Rb4 {[%clk 0:01:06]} 23. Qc3 {[%clk 0:02:13]}  Rdb8 {[%clk 0:01:00]} 24. Bc2 {[%clk 0:02:10]}  h6 {[%clk 0:00:30]} 25. Nc4 {[%clk 0:02:10]}  Bxc4 {[%clk 0:00:22]} 26. bxc4 {[%clk 0:02:11]}  Qa7 {[%clk 0:00:19]} 27. Qd4 {[%clk 0:02:09]}  Qa6 {[%clk 0:00:19]} 28. a3 {[%clk 0:01:43]}  Rb2 {[%clk 0:00:10]} 29. Qd8+ {[%clk 0:01:40]}  Ne8 {[%clk 0:00:09]} 30. Qd3 {[%clk 0:01:41]}  Nf6 {[%clk 0:00:09]} 31. Qc3 {[%clk 0:01:18]}  Qa7 {[%clk 0:00:02]} 32. Qxb2 {[%clk 0:01:18]} 1-0


[Site "https://www.chess.com"]

[Event "Titled Tuesday Blitz July 18 Late 2023"]
[White "Sjugirov, Sanan"]
[Black "Volovich, Vasily"]
[WhiteFideId "4189302"]
[BlackFideId "34169676"]
[WhiteElo "2940"]
[BlackElo "2711"]
[Result "1-0"]
[Round "6"]
[TimeControl "180+2"]
[Date "2023.07.18"]
[WhiteClock "0:00:05"]
[BlackClock "0:00:00"]
[Board "21"]

1. e4 {[%clk 0:03:00]}  e6 {[%clk 0:02:58]} 2. d4 {[%clk 0:03:00]}  d5 {[%clk 0:02:58]} 3. e5 {[%clk 0:03:01]}  c5 {[%clk 0:02:58]} 4. c3 {[%clk 0:03:02]}  Nc6 {[%clk 0:02:58]} 5. Nf3 {[%clk 0:03:02]}  Bd7 {[%clk 0:02:59]} 6. Be2 {[%clk 0:03:03]}  f6 {[%clk 0:02:59]} 7. O-O {[%clk 0:03:03]}  fxe5 {[%clk 0:03:00]} 8. Nxe5 {[%clk 0:02:58]}  Nxe5 {[%clk 0:03:00]} 9. dxe5 {[%clk 0:02:59]}  Qc7 {[%clk 0:03:01]} 10. Bf4 {[%clk 0:02:58]}  O-O-O {[%clk 0:02:54]} 11. a4 {[%clk 0:02:52]}  Ne7 {[%clk 0:02:47]} 12. Na3 {[%clk 0:02:52]}  Ng6 {[%clk 0:02:45]} 13. Bg3 {[%clk 0:02:52]}  Nxe5 {[%clk 0:02:41]} 14. Nb5 {[%clk 0:02:48]}  Bxb5 {[%clk 0:02:40]} 15. axb5 {[%clk 0:02:49]}  Bd6 {[%clk 0:02:05]} 16. Rxa7 {[%clk 0:02:47]}  Qb6 {[%clk 0:02:05]} 17. Ra4 {[%clk 0:02:35]}  Kc7 {[%clk 0:01:50]} 18. Qd2 {[%clk 0:02:26]}  Nd7 {[%clk 0:01:35]} 19. Qg5 {[%clk 0:02:15]}  Bxg3 {[%clk 0:01:32]} 20. hxg3 {[%clk 0:02:16]}  g6 {[%clk 0:01:23]} 21. Rf4 {[%clk 0:02:08]}  Qd6 {[%clk 0:01:20]} 22. Re1 {[%clk 0:02:08]}  Rdf8 {[%clk 0:01:16]} 23. Bg4 {[%clk 0:02:03]}  Rxf4 {[%clk 0:01:01]} 24. gxf4 {[%clk 0:02:04]}  Re8 {[%clk 0:00:57]} 25. Qh6 {[%clk 0:01:33]}  Re7 {[%clk 0:00:57]} 26. Qh3 {[%clk 0:01:27]}  Qxf4 {[%clk 0:00:51]} 27. b4 {[%clk 0:00:46]}  c4 {[%clk 0:00:39]} 28. g3 {[%clk 0:00:30]}  Qf6 {[%clk 0:00:32]} 29. Rxe6 {[%clk 0:00:29]}  Rxe6 {[%clk 0:00:31]} 30. Bxe6 {[%clk 0:00:30]}  Qxc3 {[%clk 0:00:16]} 31. Bxd5 {[%clk 0:00:25]}  Qe1+ {[%clk 0:00:12]} 32. Kg2 {[%clk 0:00:25]}  c3 {[%clk 0:00:12]} 33. Qg4 {[%clk 0:00:18]}  Qe5 {[%clk 0:00:11]} 34. Qc4+ {[%clk 0:00:12]}  Kb8 {[%clk 0:00:11]} 35. Bf3 {[%clk 0:00:11]}  Nb6 {[%clk 0:00:10]} 36. Qg8+ {[%clk 0:00:10]}  Ka7 {[%clk 0:00:10]} 37. Qa2+ {[%clk 0:00:10]}  Kb8 {[%clk 0:00:10]} 38. Qg8+ {[%clk 0:00:10]}  Kc7 {[%clk 0:00:01]} 39. Qxh7+ {[%clk 0:00:11]}  Nd7 {[%clk 0:00:02]} 40. Qxg6 {[%clk 0:00:10]}  Qd4 {[%clk 0:00:02]} 41. Qf5 {[%clk 0:00:04]}  Qxb4 {[%clk 0:00:02]} 42. Qd5 {[%clk 0:00:05]}  Nc5 {[%clk 0:00:01]} 43. Qe5+ {[%clk 0:00:04]}  Kb6 {[%clk 0:00:02]} 44. Qd6+ {[%clk 0:00:04]}  Kxb5 {[%clk 0:00:02]} 45. Be2+ {[%clk 0:00:05]}  Ka4 {[%clk 0:00:03]} 46. Qd1+ {[%clk 0:00:05]}  Ka3 {[%clk 0:00:02]} 47. Qa1+ {[%clk 0:00:05]}  Kb3 {[%clk 0:00:02]} 48. Qb1+ {[%clk 0:00:06]}  Ka3 {[%clk 0:00:02]} 49. Qa1+ {[%clk 0:00:05]}  Kb3 {[%clk 0:00:03]} 50. Bf3 {[%clk 0:00:06]}  c2 {[%clk 0:00:02]} 51. Bd5+ {[%clk 0:00:06]}  Qc4 {[%clk 0:00:01]} 52. Bxc4+ {[%clk 0:00:05]}  Kxc4 {[%clk 0:00:02]} 53. Qb2 {[%clk 0:00:05]}  Kd3 {[%clk 0:00:02]} 54. Qb5+ {[%clk 0:00:05]}  Kd4 {[%clk 0:00:00]} 55. Qb4+ {[%clk 0:00:05]} 1-0


[Site "https://www.chess.com"]

[Event "Titled Tuesday Blitz July 18 Late 2023"]
[White "Antipov, Mikhail Al."]
[Black "Quintiliano Pinto, Renato R."]
[WhiteFideId "4107012"]
[BlackFideId "2117568"]
[WhiteElo "2917"]
[BlackElo "2706"]
[Result "1-0"]
[Round "6"]
[TimeControl "180+2"]
[Date "2023.07.18"]
[WhiteClock "0:00:01"]
[BlackClock "0:00:00"]
[Board "23"]

1. e4 {[%clk 0:03:00]}  e5 {[%clk 0:02:57]} 2. Nf3 {[%clk 0:03:00]}  Nc6 {[%clk 0:02:57]} 3. Nc3 {[%clk 0:03:01]}  Nf6 {[%clk 0:02:56]} 4. Bb5 {[%clk 0:03:02]}  Bb4 {[%clk 0:02:54]} 5. Nd5 {[%clk 0:03:01]}  Ba5 {[%clk 0:02:47]} 6. O-O {[%clk 0:02:58]}  O-O {[%clk 0:02:39]} 7. c3 {[%clk 0:02:46]}  Nxd5 {[%clk 0:02:19]} 8. exd5 {[%clk 0:02:46]}  Ne7 {[%clk 0:02:19]} 9. Nxe5 {[%clk 0:02:44]}  Nxd5 {[%clk 0:02:19]} 10. Qf3 {[%clk 0:02:38]}  Nf6 {[%clk 0:02:05]} 11. d4 {[%clk 0:02:36]}  c6 {[%clk 0:01:36]} 12. Bd3 {[%clk 0:02:35]}  h6 {[%clk 0:01:32]} 13. Bxh6 {[%clk 0:01:35]}  gxh6 {[%clk 0:01:30]} 14. Qg3+ {[%clk 0:01:26]}  Kh8 {[%clk 0:01:30]} 15. Qh4 {[%clk 0:00:45]}  Kg7 {[%clk 0:01:13]} 16. Rae1 {[%clk 0:00:20]}  d6 {[%clk 0:00:58]} 17. Qg3+ {[%clk 0:00:20]}  Kh8 {[%clk 0:00:57]} 18. f4 {[%clk 0:00:21]}  dxe5 {[%clk 0:00:49]} 19. fxe5 {[%clk 0:00:21]}  Nh5 {[%clk 0:00:43]} 20. Qf3 {[%clk 0:00:18]}  Qg5 {[%clk 0:00:33]} 21. Qe4 {[%clk 0:00:18]}  Qg7 {[%clk 0:00:22]} 22. Qh4 {[%clk 0:00:12]}  Rg8 {[%clk 0:00:14]} 23. Re2 {[%clk 0:00:13]}  Qg4 {[%clk 0:00:14]} 24. Rxf7 {[%clk 0:00:13]}  Rg5 {[%clk 0:00:09]} 25. Rf8+ {[%clk 0:00:03]}  Kg7 {[%clk 0:00:08]} 26. Qf2 {[%clk 0:00:03]}  Be6 {[%clk 0:00:07]} 27. Rxa8 {[%clk 0:00:03]}  Nf4 {[%clk 0:00:07]} 28. Kf1 {[%clk 0:00:02]}  Bd5 {[%clk 0:00:05]} 29. g3 {[%clk 0:00:02]}  Qh3+ {[%clk 0:00:05]} 30. Kg1 {[%clk 0:00:02]}  Nxe2+ {[%clk 0:00:05]} 31. Bxe2 {[%clk 0:00:03]}  Rf5 {[%clk 0:00:06]} 32. Bf1 {[%clk 0:00:02]}  Qg4 {[%clk 0:00:05]} 33. Qe2 {[%clk 0:00:01]}  Qh4 {[%clk 0:00:00]} 34. gxh4 {[%clk 0:00:01]} 1-0


[Site "https://www.chess.com"]

[Event "Titled Tuesday Blitz July 18 Late 2023"]
[White "Velikanov, Alexander"]
[Black "Grigoriants, Sergey"]
[WhiteFideId "2039290"]
[BlackFideId "4130804"]
[WhiteElo "2704"]
[BlackElo "2913"]
[Result "0-1"]
[Round "6"]
[TimeControl "180+2"]
[Date "2023.07.18"]
[WhiteClock "0:00:00"]
[BlackClock "0:00:05"]
[Board "24"]

1. e4 {[%clk 0:02:57]}  c5 {[%clk 0:02:35]} 2. Nf3 {[%clk 0:02:50]}  Nc6 {[%clk 0:02:35]} 3. d4 {[%clk 0:02:46]}  cxd4 {[%clk 0:02:35]} 4. Nxd4 {[%clk 0:02:46]}  e6 {[%clk 0:02:35]} 5. Bf4 {[%clk 0:02:44]}  d6 {[%clk 0:02:30]} 6. Nxc6 {[%clk 0:02:31]}  bxc6 {[%clk 0:02:30]} 7. c4 {[%clk 0:02:31]}  e5 {[%clk 0:02:31]} 8. Be3 {[%clk 0:02:30]}  f5 {[%clk 0:02:15]} 9. exf5 {[%clk 0:02:26]}  Bxf5 {[%clk 0:02:14]} 10. Nc3 {[%clk 0:02:08]}  Nf6 {[%clk 0:02:13]} 11. Be2 {[%clk 0:02:04]}  Be7 {[%clk 0:02:11]} 12. g4 {[%clk 0:01:54]}  Be6 {[%clk 0:02:04]} 13. g5 {[%clk 0:01:50]}  Nd7 {[%clk 0:02:02]} 14. Bg4 {[%clk 0:01:40]}  Nf8 {[%clk 0:01:05]} 15. h4 {[%clk 0:01:16]}  Qd7 {[%clk 0:01:04]} 16. Bh5+ {[%clk 0:01:14]}  Ng6 {[%clk 0:00:59]} 17. Qc2 {[%clk 0:01:03]}  O-O {[%clk 0:00:58]} 18. O-O-O {[%clk 0:01:01]}  Nf4 {[%clk 0:00:53]} 19. Bf3 {[%clk 0:00:45]}  Bxc4 {[%clk 0:00:39]} 20. Be4 {[%clk 0:00:45]}  Rab8 {[%clk 0:00:25]} 21. Bxh7+ {[%clk 0:00:30]}  Kh8 {[%clk 0:00:26]} 22. h5 {[%clk 0:00:25]}  Bxg5 {[%clk 0:00:23]} 23. Ne4 {[%clk 0:00:25]}  Nd3+ {[%clk 0:00:16]} 24. Rxd3 {[%clk 0:00:22]}  Bxd3 {[%clk 0:00:16]} 25. Qxd3 {[%clk 0:00:22]}  Bxe3+ {[%clk 0:00:16]} 26. fxe3 {[%clk 0:00:22]}  d5 {[%clk 0:00:10]} 27. Nd2 {[%clk 0:00:12]}  Qb7 {[%clk 0:00:07]} 28. Qc2 {[%clk 0:00:11]}  e4 {[%clk 0:00:07]} 29. Bg6 {[%clk 0:00:11]}  Rf2 {[%clk 0:00:07]} 30. Qc3 {[%clk 0:00:11]}  Qb4 {[%clk 0:00:06]} 31. Rg1 {[%clk 0:00:05]}  Qxc3+ {[%clk 0:00:05]} 32. bxc3 {[%clk 0:00:06]}  Rbf8 {[%clk 0:00:05]} 33. Rg5 {[%clk 0:00:04]}  Re2 {[%clk 0:00:04]} 34. Kd1 {[%clk 0:00:02]}  Rxe3 {[%clk 0:00:04]} 35. Nb1 {[%clk 0:00:02]}  Rd3+ {[%clk 0:00:03]} 36. Kc2 {[%clk 0:00:02]}  Rdf3 {[%clk 0:00:04]} 37. Re5 {[%clk 0:00:02]}  Rf2+ {[%clk 0:00:04]} 38. Kb3 {[%clk 0:00:02]}  Rb8+ {[%clk 0:00:04]} 39. Ka3 {[%clk 0:00:02]}  Rfb2 {[%clk 0:00:03]} 40. Nd2 {[%clk 0:00:01]}  Rxd2 {[%clk 0:00:03]} 41. Re6 {[%clk 0:00:01]}  Rc2 {[%clk 0:00:03]} 42. Rxc6 {[%clk 0:00:01]}  d4 {[%clk 0:00:04]} 43. c4 {[%clk 0:00:02]}  Rc3+ {[%clk 0:00:04]} 44. Ka4 {[%clk 0:00:02]}  d3 {[%clk 0:00:04]} 45. Bxe4 {[%clk 0:00:00]}  d2 {[%clk 0:00:05]} 0-1


[Site "https://www.chess.com"]

[Event "Titled Tuesday Blitz July 18 Late 2023"]
[White "Rastbod, Ali"]
[Black "Tang, Andrew"]
[WhiteFideId "12567477"]
[BlackFideId "2059630"]
[WhiteElo "2699"]
[BlackElo "2885"]
[Result "0-1"]
[Round "6"]
[TimeControl "180+2"]
[Date "2023.07.18"]
[WhiteClock "0:00:00"]
[BlackClock "0:00:21"]
[Board "25"]

1. c4 {[%clk 0:03:00]}  e6 {[%clk 0:02:51]} 2. g3 {[%clk 0:02:58]}  d5 {[%clk 0:02:43]} 3. Bg2 {[%clk 0:02:59]}  Nf6 {[%clk 0:02:39]} 4. Nf3 {[%clk 0:02:59]}  Be7 {[%clk 0:02:40]} 5. O-O {[%clk 0:02:59]}  O-O {[%clk 0:02:40]} 6. d4 {[%clk 0:03:00]}  dxc4 {[%clk 0:02:41]} 7. Qc2 {[%clk 0:03:00]}  a6 {[%clk 0:02:41]} 8. a4 {[%clk 0:03:01]}  Bd7 {[%clk 0:02:41]} 9. Rd1 {[%clk 0:03:02]}  Bc6 {[%clk 0:02:38]} 10. Nc3 {[%clk 0:03:01]}  Bxf3 {[%clk 0:02:38]} 11. Bxf3 {[%clk 0:03:02]}  Nc6 {[%clk 0:02:39]} 12. Bxc6 {[%clk 0:03:02]}  bxc6 {[%clk 0:02:39]} 13. a5 {[%clk 0:03:03]}  Rb8 {[%clk 0:02:36]} 14. Ra4 {[%clk 0:02:57]}  Rb4 {[%clk 0:02:33]} 15. Bg5 {[%clk 0:02:55]}  Qb8 {[%clk 0:02:30]} 16. Bxf6 {[%clk 0:02:43]}  Rxb2 {[%clk 0:01:59]} 17. Qe4 {[%clk 0:02:42]}  gxf6 {[%clk 0:01:43]} 18. Rxc4 {[%clk 0:02:39]}  Qb3 {[%clk 0:01:35]} 19. Qxc6 {[%clk 0:02:25]}  Bd6 {[%clk 0:01:28]} 20. Qxa6 {[%clk 0:01:35]}  Rxe2 {[%clk 0:01:23]} 21. Rb1 {[%clk 0:01:22]}  Qc2 {[%clk 0:01:21]} 22. Nxe2 {[%clk 0:01:14]}  Qxb1+ {[%clk 0:01:20]} 23. Rc1 {[%clk 0:01:09]}  Qa2 {[%clk 0:01:21]} 24. Nc3 {[%clk 0:00:51]}  Qa3 {[%clk 0:01:21]} 25. Ne2 {[%clk 0:00:51]}  Rb8 {[%clk 0:01:18]} 26. Kg2 {[%clk 0:00:46]}  Rb2 {[%clk 0:01:11]} 27. Rc3 {[%clk 0:00:36]}  Qa2 {[%clk 0:01:03]} 28. Re3 {[%clk 0:00:32]}  Qd5+ {[%clk 0:00:58]} 29. Kh3 {[%clk 0:00:30]}  Ra2 {[%clk 0:00:53]} 30. Qd3 {[%clk 0:00:20]}  Qh1 {[%clk 0:00:47]} 31. Nc3 {[%clk 0:00:14]}  Rxa5 {[%clk 0:00:46]} 32. d5 {[%clk 0:00:14]}  Kg7 {[%clk 0:00:40]} 33. Rf3 {[%clk 0:00:13]}  Be5 {[%clk 0:00:34]} 34. dxe6 {[%clk 0:00:13]}  Bxc3 {[%clk 0:00:34]} 35. exf7 {[%clk 0:00:11]}  Rh5+ {[%clk 0:00:26]} 36. Kg4 {[%clk 0:00:10]}  Rg5+ {[%clk 0:00:23]} 37. Kh3 {[%clk 0:00:11]}  Bb4 {[%clk 0:00:22]} 38. f8=Q+ {[%clk 0:00:05]}  Bxf8 {[%clk 0:00:22]} 39. Qd6 {[%clk 0:00:00]}  Bxd6 {[%clk 0:00:21]} 0-1


[Site "https://www.chess.com"]

[Event "Titled Tuesday Blitz July 18 Late 2023"]
[White "Moskalenko, Alexander"]
[Black "Vetoshko, Volodymyr"]
[WhiteFideId "4155351"]
[BlackFideId "14122480"]
[WhiteElo "2877"]
[BlackElo "2699"]
[Result "1-0"]
[Round "6"]
[TimeControl "180+2"]
[Date "2023.07.18"]
[WhiteClock "0:00:34"]
[BlackClock "0:00:00"]
[Board "26"]

1. c3 {[%clk 0:02:51]}  b6 {[%clk 0:02:55]} 2. d4 {[%clk 0:02:52]}  Bb7 {[%clk 0:02:55]} 3. Nf3 {[%clk 0:02:46]}  g6 {[%clk 0:02:55]} 4. g3 {[%clk 0:02:43]}  Bg7 {[%clk 0:02:52]} 5. Bg2 {[%clk 0:02:43]}  Nf6 {[%clk 0:02:52]} 6. O-O {[%clk 0:02:43]}  O-O {[%clk 0:02:53]} 7. a4 {[%clk 0:02:39]}  a6 {[%clk 0:02:47]} 8. Bf4 {[%clk 0:02:33]}  d6 {[%clk 0:02:45]} 9. Qc1 {[%clk 0:02:33]}  Re8 {[%clk 0:02:42]} 10. Bh6 {[%clk 0:02:32]}  Bh8 {[%clk 0:02:43]} 11. Rd1 {[%clk 0:02:32]}  Nbd7 {[%clk 0:02:42]} 12. Nbd2 {[%clk 0:02:32]}  Ra7 {[%clk 0:02:34]} 13. Bg5 {[%clk 0:02:26]}  Qa8 {[%clk 0:02:33]} 14. Ne1 {[%clk 0:02:26]}  c5 {[%clk 0:02:31]} 15. Qc2 {[%clk 0:02:20]}  Rc8 {[%clk 0:02:17]} 16. Bxb7 {[%clk 0:02:14]}  Rxb7 {[%clk 0:02:15]} 17. Qb3 {[%clk 0:02:11]}  cxd4 {[%clk 0:02:07]} 18. cxd4 {[%clk 0:02:10]}  Rbc7 {[%clk 0:02:06]} 19. Bxf6 {[%clk 0:02:04]}  Bxf6 {[%clk 0:02:04]} 20. e3 {[%clk 0:02:02]}  h5 {[%clk 0:02:04]} 21. h4 {[%clk 0:02:00]}  Kg7 {[%clk 0:01:50]} 22. Qd3 {[%clk 0:01:51]}  Qb7 {[%clk 0:01:43]} 23. Qe4 {[%clk 0:01:51]}  d5 {[%clk 0:01:22]} 24. Qd3 {[%clk 0:01:51]}  e5 {[%clk 0:01:22]} 25. dxe5 {[%clk 0:01:52]}  Nxe5 {[%clk 0:01:22]} 26. Qb3 {[%clk 0:01:52]}  Nc4 {[%clk 0:01:09]} 27. Rab1 {[%clk 0:01:51]}  d4 {[%clk 0:00:59]} 28. exd4 {[%clk 0:01:37]}  Bxd4 {[%clk 0:00:56]} 29. Nef3 {[%clk 0:01:37]}  Nxd2 {[%clk 0:00:43]} 30. Rxd2 {[%clk 0:01:35]}  Rc1+ {[%clk 0:00:39]} 31. Rxc1 {[%clk 0:01:31]}  Rxc1+ {[%clk 0:00:40]} 32. Kg2 {[%clk 0:01:31]}  Bf6 {[%clk 0:00:37]} 33. Rc2 {[%clk 0:01:29]}  Rb1 {[%clk 0:00:27]} 34. Qa2 {[%clk 0:01:26]}  Rd1 {[%clk 0:00:24]} 35. Qc4 {[%clk 0:01:27]}  b5 {[%clk 0:00:20]} 36. axb5 {[%clk 0:01:22]}  axb5 {[%clk 0:00:21]} 37. Qe2 {[%clk 0:01:13]}  Qd5 {[%clk 0:00:21]} 38. b4 {[%clk 0:01:10]}  Qd3 {[%clk 0:00:06]} 39. Qxd3 {[%clk 0:01:09]}  Rxd3 {[%clk 0:00:06]} 40. Rc5 {[%clk 0:01:10]}  Be7 {[%clk 0:00:04]} 41. Rxb5 {[%clk 0:01:10]}  Rb3 {[%clk 0:00:04]} 42. Rb7 {[%clk 0:01:10]}  Kf8 {[%clk 0:00:03]} 43. b5 {[%clk 0:01:11]}  Bc5 {[%clk 0:00:03]} 44. Ne5 {[%clk 0:01:09]}  Bd4 {[%clk 0:00:02]} 45. Nc6 {[%clk 0:01:03]}  Bc5 {[%clk 0:00:03]} 46. Ne5 {[%clk 0:00:38]}  Bd4 {[%clk 0:00:02]} 47. Nxf7 {[%clk 0:00:38]}  Rb2 {[%clk 0:00:02]} 48. Kf3 {[%clk 0:00:34]}  Rxf2+ {[%clk 0:00:02]} 49. Ke4 {[%clk 0:00:34]}  Bc5 {[%clk 0:00:02]} 50. Ng5 {[%clk 0:00:34]}  Rb2 {[%clk 0:00:00]} 51. Ne6+ {[%clk 0:00:34]} 1-0


[Site "https://www.chess.com"]

[Event "Titled Tuesday Blitz July 18 Late 2023"]
[White "Rasulov, Vugar"]
[Black "Ganiev, Roman"]
[WhiteFideId "13402390"]
[BlackFideId "4131452"]
[WhiteElo "2858"]
[BlackElo "2619"]
[Result "1-0"]
[Round "6"]
[TimeControl "180+2"]
[Date "2023.07.18"]
[WhiteClock "0:01:38"]
[BlackClock "0:00:17"]
[Board "27"]

1. Nf3 {[%clk 0:03:00]}  Nf6 {[%clk 0:02:55]} 2. c4 {[%clk 0:03:00]}  e6 {[%clk 0:02:55]} 3. Nc3 {[%clk 0:02:59]}  Bb4 {[%clk 0:02:51]} 4. g3 {[%clk 0:02:57]}  O-O {[%clk 0:02:49]} 5. Bg2 {[%clk 0:02:57]}  d5 {[%clk 0:02:50]} 6. b3 {[%clk 0:02:49]}  Nbd7 {[%clk 0:02:24]} 7. O-O {[%clk 0:02:48]}  Bxc3 {[%clk 0:02:16]} 8. dxc3 {[%clk 0:02:48]}  dxc4 {[%clk 0:02:17]} 9. Qc2 {[%clk 0:02:41]}  Nb6 {[%clk 0:02:09]} 10. Ba3 {[%clk 0:02:35]}  Re8 {[%clk 0:01:48]} 11. Rfd1 {[%clk 0:02:35]}  Bd7 {[%clk 0:01:48]} 12. Ne5 {[%clk 0:02:35]}  Qc8 {[%clk 0:01:48]} 13. Rd4 {[%clk 0:02:23]}  c5 {[%clk 0:01:44]} 14. Rh4 {[%clk 0:02:23]}  cxb3 {[%clk 0:01:37]} 15. axb3 {[%clk 0:02:24]}  Qc7 {[%clk 0:01:33]} 16. Ng4 {[%clk 0:02:20]}  Nxg4 {[%clk 0:01:13]} 17. Qxh7+ {[%clk 0:02:19]}  Kf8 {[%clk 0:01:13]} 18. Rxg4 {[%clk 0:02:20]}  g6 {[%clk 0:01:11]} 19. Rg5 {[%clk 0:02:13]}  e5 {[%clk 0:01:07]} 20. Qh8+ {[%clk 0:02:05]}  Ke7 {[%clk 0:01:00]} 21. Qxe5+ {[%clk 0:02:06]}  Qxe5 {[%clk 0:00:59]} 22. Rxe5+ {[%clk 0:02:07]}  Kf6 {[%clk 0:00:59]} 23. Rxe8 {[%clk 0:02:04]}  Rxe8 {[%clk 0:00:58]} 24. Bxc5 {[%clk 0:01:59]}  Rxe2 {[%clk 0:00:53]} 25. Bxb7 {[%clk 0:01:59]}  Be6 {[%clk 0:00:49]} 26. Bd4+ {[%clk 0:01:53]}  Kf5 {[%clk 0:00:48]} 27. Bf3 {[%clk 0:01:48]}  Rb2 {[%clk 0:00:39]} 28. Ra5+ {[%clk 0:01:47]}  Nd5 {[%clk 0:00:26]} 29. Bxd5 {[%clk 0:01:45]}  Kg4 {[%clk 0:00:27]} 30. Kg2 {[%clk 0:01:39]}  Ra2 {[%clk 0:00:17]} 31. Bf3# {[%clk 0:01:38]} 1-0


[Site "https://www.chess.com"]

[Event "Titled Tuesday Blitz July 18 Late 2023"]
[White "Bartel, Mateusz"]
[Black "Tarhan, Adar"]
[WhiteFideId "1112635"]
[BlackFideId "34544712"]
[WhiteElo "2842"]
[BlackElo "2607"]
[Result "1-0"]
[Round "6"]
[TimeControl "180+2"]
[Date "2023.07.18"]
[WhiteClock "0:01:47"]
[BlackClock "0:01:15"]
[Board "32"]

1. e3 {[%clk 0:02:51]}  Nf6 {[%clk 0:02:56]} 2. c4 {[%clk 0:02:49]}  e5 {[%clk 0:02:56]} 3. Nc3 {[%clk 0:02:48]}  Bb4 {[%clk 0:02:56]} 4. Nge2 {[%clk 0:02:47]}  c6 {[%clk 0:02:55]} 5. a3 {[%clk 0:02:42]}  Bd6 {[%clk 0:02:54]} 6. Ng3 {[%clk 0:02:35]}  Bc7 {[%clk 0:02:53]} 7. d4 {[%clk 0:02:32]}  exd4 {[%clk 0:02:51]} 8. exd4 {[%clk 0:02:32]}  d5 {[%clk 0:02:49]} 9. cxd5 {[%clk 0:02:24]}  Nxd5 {[%clk 0:02:50]} 10. Bd3 {[%clk 0:02:24]}  Be6 {[%clk 0:02:49]} 11. O-O {[%clk 0:02:21]}  O-O {[%clk 0:02:36]} 12. Qh5 {[%clk 0:02:20]}  Nf6 {[%clk 0:02:36]} 13. Qh4 {[%clk 0:02:19]}  Nbd7 {[%clk 0:02:30]} 14. Bg5 {[%clk 0:02:13]}  h6 {[%clk 0:02:29]} 15. Bxh6 {[%clk 0:02:13]}  gxh6 {[%clk 0:02:15]} 16. Qxh6 {[%clk 0:02:14]}  Bxg3 {[%clk 0:02:16]} 17. fxg3 {[%clk 0:02:07]}  Re8 {[%clk 0:02:14]} 18. Rf4 {[%clk 0:02:01]}  Bg4 {[%clk 0:01:19]} 19. Raf1 {[%clk 0:01:49]}  Re6 {[%clk 0:01:14]} 20. Rxg4+ {[%clk 0:01:46]}  Nxg4 {[%clk 0:01:14]} 21. Qh7+ {[%clk 0:01:46]}  Kf8 {[%clk 0:01:15]} 22. Qxf7# {[%clk 0:01:47]} 1-0


[Site "https://www.chess.com"]